Cogmind - Beta 14 @@@ ROGUE MODE // 2025.01.12 @ 21:30:21 Player: Phantom Result: Destroyed by YI-UF0 with YI-UF0's Doublenader Performance ------------- Evolutions (0) 0 Regions Visited (2) 400 Robots Destroyed (11) 55 Value Destroyed (225) 225 Prototype IDs (0) 0 Alien Tech Used (0) 0 Bonus (0) 0 TOTAL SCORE: 680 Bonus ------- None Cogmind --------- Core Integrity 0/250 Matter 238/300 Energy 90/250 System Corruption 0% Temperature Cool (15) Movement Core (150) Ox2 Location -10/Mines Parts ------- > --- POWER (1) -------- Ion Engine > --- PROPULSION (2) --- (None) > --- UTILITY (2) ------ Light Armor Plating > --- WEAPON (2) ------- (None) > --- INVENTORY (5) ---- (None) Peak State ------------ > --- POWER ------------ Light Nuclear Core > --- PROPULSION ------- Aluminum Leg Aluminum Leg > --- UTILITY ---------- Heat Sink Terrain Scanner > --- WEAPON ----------- Medium Laser Particle Gun > --- INVENTORY -------- Ion Engine Light Assault Rifle [Rating: 10] Favorites ----------- Power Ion Engine Engine Ion Engine Power Core Light Nuclear Core Propulsion Aluminum Leg Leg Aluminum Leg Wheel Wheel Utility Heat Sink Device Heat Sink Storage Huge Storage Unit Protection Weapon Shielding Weapon EM Pulse Gun Energy Gun EM Pulse Gun Energy Cannon Beam Cannon Ballistic Gun Light Assault Rifle Special Weapon Mining Laser Build | -11 -10 -10 ------- Run | Yrd Mat Min Slots Evolved . | . . . Power . | . . . Propulsion . | . . . Utility . | . . . Weapon . | . . . Parts Attached 26 | 6 15 5 Power 5 | 1 3 1 Engine 4 | 1 2 1 Core 1 | . 1 . Reactor . | . . . Propulsion 4 | 2 2 . Treads . | . . . Leg 2 | . 2 . Wheel 2 | 2 . . Hover . | . . . Flight . | . . . Utility 8 | 1 6 1 Device 5 | 1 4 . Storage 1 | . 1 . Processor . | . . . Hackware . | . . . Protection 2 | . 1 1 Artifact . | . . . Weapon 9 | 2 4 3 Energy Gun 3 | . 3 . Energy Cannon 1 | . 1 . Ballistic Gun 4 | 2 . 2 Ballistic Cannon . | . . . Launcher . | . . . Special Weapon 1 | . . 1 Impact Weapon . | . . . Slashing Weapon . | . . . Piercing Weapon . | . . . Special Melee Weapon . | . . . Unidentified Prototypes . | . . . Parts Lost 14 | . 4 10 Power 1 | . . 1 Propulsion 4 | . 2 2 Utility 3 | . 1 2 Weapon 6 | . 1 5 Highest Loss Streak 10 | . 4 10 To Critical Strikes . | . . . Average Slot Usage (%) 94 | . 95 90 Engine 12 | . 11 13 Core 1 | . 2 . Leg 20 | . 19 25 Wheel 5 | . 7 . Device 23 | . 23 25 Protection 2 | . 2 . Energy Gun 14 | . 14 12 Energy Cannon 6 | . 5 12 Ballistic Gun 6 | . 7 2 Peak Build Rating 10 | 6 10 7 Average Rating 6 | 3 7 6 On Entrance 4 | . 6 7 Naked Turns 1 | . . 1 Heaviest Build 12 | 7 12 12 Greatest Support 20 | 20 20 20 Greatest Overweight (x) 3 | . 3 . Average Overweight (x) . | . . . Largest Inventory Capacity 25 | 5 25 5 Average Capacity 5 | 5 5 5 Most Carried 5 | 3 5 5 Average Carried 4 | 1 4 4 Final Capacity 5 | 5 5 5 Final Carried 5 | 3 5 . Class Distribution -------------------- 100% | Mutant Dominant Class ---------------- Mutant | -10/Materials Mutant | -10/Mines Resources | -11 -10 -10 ----------- Run | Yrd Mat Min Matter Collected 428 | 280 148 . Remotely . | . . . Salvage Created 309 | 48 261 . Parts 25 | 3 22 . Haulers Intercepted . | . . . Recyclers Shooed . | . . . Parts Field Recycled . | . . . Retrieved Matter . | . . . Parts Self-Destructed . | . . . Prevented . | . . . Kills | -11 -10 -10 ------- Run | Yrd Mat Min Combat Hostiles Destroyed 10 | 1 9 . Guns 10 | 1 9 . Classes Destroyed 3 | 1 2 . Watcher 1 | . 1 . Swarmer 6 | . 6 . Grunt 4 | 1 3 . Best Kill Streak 3 | 1 3 . Combat Bots Only 3 | 1 3 . Max Kills in Single Turn 1 | 1 1 . Gunslinging . | . . . Exploded . | . . . Melee . | . . . Uniques/NPCs Destroyed . | . . . Combat | -11 -10 -10 -------- Run | Yrd Mat Min Hostile Shots Fired 111 | 7 68 36 Missed 36 | 2 22 12 Damage Taken 1415 | 54 478 883 Core 261 | 10 61 190 Absorbed by Shields . | . . . Redirected to Shielding 50 | . 50 . Regen/Repaired (Parts) 17 | . 17 . Core Remaining (%) 96 | 96 . . Volleys Fired 55 | 5 38 12 Largest 2 | 2 2 2 Hottest 115 | 40 115 100 Shots Fired 104 | 10 73 21 Gun 96 | 10 73 13 Cannon 7 | . . 7 Launcher . | . . . Special 1 | . . 1 Kinetic 62 | 10 46 6 Thermal 29 | . 21 8 Explosive . | . . . Electromagnetic 13 | . 6 7 Robot Hit Streak 7 | 5 7 6 Robot Miss Streak 5 | 2 5 3 Penetration Max . | . . . Secondary Targets 2 | . 2 . Max Gunslinging Chain 1 | . 1 . Shots Hit Robots 59 | 7 39 13 Core Hits 18 | 3 15 . Critical Kills . | . . . Critical Parts Destroyed . | . . . Critical Strikes 4 | . 4 . Burn 4 | . 4 . Melee Attacks . | . . . Impact . | . . . Slashing . | . . . Piercing . | . . . Sneak Attacks . | . . . Combat Hostiles . | . . . Follow-up Attacks . | . . . Damage Inflicted 674 | 83 447 144 Guns 612 | 83 447 82 Cannons 51 | . . 51 Explosions . | . . . Melee . | . . . Ramming 11 | . . 11 Kinetic 429 | 83 317 29 Thermal 153 | . 102 51 Explosive . | . . . Electromagnetic 81 | . 28 53 Impact . | . . . Slashing . | . . . Piercing . | . . . Highest Corruption . | . . . Average Corruption . | . . . Corruption Purged . | . . . Corruption Blocked . | . . . Overload Shots . | . . . Overflow Damage . | . . . Projectiles . | . . . Explosions . | . . . Melee . | . . . Knockbacks . | . . . Impact . | . . . Kinetic . | . . . Secondary . | . . . Self-Inflicted Damage 5 | . . 5 Shots . | . . . Rammed 4 | . . 4 Targets Rammed 4 | . . 4 Kicked . | . . . Crushed . | . . . Highest Temperature 210 | 6 210 36 Average Temperature 49 | 6 69 17 Received Heat Transfer 180 | 30 150 . Siege Activations . | . . . Robots Corrupted . | . . . Combat Hostiles . | . . . Parts Fried . | . . . Impact Corruptions . | . . . Robots Melted . | . . . Combat Hostiles . | . . . Parts Melted 1 | . 1 . Heat Transferred 703 | . 592 111 Parts Sabotaged . | . . . Parts Stolen . | . . . Parts Stripped . | . . . Power Chain Reactions . | . . . Alert | -11 -10 -10 ------- Run | Yrd Mat Min Peak Influence 263 | 20 263 43 Initial 28 | . 13 28 Average 92 | 2 120 27 Maximum Alert Level 1 | . 1 . Low Security (%) 79 | 100 72 100 Level 1 20 | . 27 . Level 2 . | . . . Level 3 . | . . . Level 4 . | . . . Level 5 . | . . . High Security . | . . . Max Security . | . . . Squads Dispatched 1 | . 1 . Investigation . | . . . Extermination . | . . . Reinforcement 1 | . 1 . Assault . | . . . Garrison . | . . . Intercept . | . . . Searches Triggered . | . . . Construction Impeded . | . . . Haulers Reinforced . | . . . Active Scanning Responses . | . . . Cargo Convoy Interrupts . | . . . Stealth | -11 -10 -10 --------- Run | Yrd Mat Min Distress Signals 2 | . 2 . Communications Jammed . | . . . Distress Signals . | . . . Times Spotted 17 | 1 12 4 Peak Tracking Total 5 | 1 5 1 Tactical Retreats 4 | . 1 3 Traps | -11 -10 -10 ------- Run | Yrd Mat Min Traps Triggered . | . . . Indirectly . | . . . Trap Hack Attempts . | . . . Triggered . | . . . Disarmed . | . . . Reprogrammed . | . . . Reused . | . . . Traps Extracted . | . . . Installed . | . . . Triggered . | . . . Machines | -11 -10 -10 ---------- Run | Yrd Mat Min Machines Disabled . | . . . Max in Single Turn . | . . . Machines Repaired . | . . . Machines Dismantled . | . . . Machines Sabotaged . | . . . Overloaded Fab Kills . | . . . Hacking | -11 -10 -10 --------- Run | Yrd Mat Min Machines Accessed 4 | . 4 . Terminals 3 | . 3 . Fabricators . | . . . Repair Stations 1 | . 1 . Recycling Units . | . . . Scanalyzers . | . . . Garrison Access . | . . . Total Hacks 9 | . 9 . Successful 7 | . 7 . Failed 2 | . 2 . Catastrophic . | . . . Database Lockouts . | . . . Manual . | . . . Terminals 7 | . 7 . Fabricators . | . . . Repair Stations 2 | . 2 . Recycling Units . | . . . Scanalyzers . | . . . Garrison Access . | . . . Terminal Hacks 5 | . 5 . Record 4 | . 4 . Alert Level 1 | . 1 . Fabricator Hacks . | . . . Repair Station Hacks 2 | . 2 . Scan Component 1 | . 1 . Repair 1 | . 1 . Recycling Unit Hacks . | . . . Scanalyzer . | . . . Garrison Access Hacks . | . . . Unauthorized Hacks . | . . . Terminals . | . . . Fabricators . | . . . Repair Stations . | . . . Recycling Units . | . . . Scanalyzers . | . . . Garrison Access . | . . . Data Cores Recovered . | . . . Used . | . . . Hacking Detections 2 | . 2 . Full Trace Events . | . . . Feedback Events . | . . . Feedback Blocked . | . . . Robot Schematics Acquired . | . . . Robots Built . | . . . Authchips . | . . . Time . | . . . Total Robot Build Rating . | . . . Part Schematics Acquired . | . . . Parts Built . | . . . Authchips . | . . . Time . | . . . Total Part Build Rating . | . . . Parts Repaired 1 | . 1 . Time 13 | . 13 . Parts Recycled . | . . . Recycled Matter . | . . . Retrieved Matter . | . . . Retrieved Components . | . . . Parts Scanalyzed . | . . . Part Schematics Acquired . | . . . Parts Damaged . | . . . Bothacking | -11 -10 -10 ------------ Run | Yrd Mat Min Used RIF Installer . | . . . Robots Hacked . | . . . Non-combat . | . . . Combat . | . . . Robot Hacks Applied . | . . . Relay Couplers Released . | . . . Fabnet Peak Effective % . | . . . Robots Rewired . | . . . Allies Hacked . | . . . Hacks Repelled . | . . . Allies | -11 -10 -10 -------- Run | Yrd Mat Min Total Allies . | . . . Largest Group . | . . . Highest-Rated Group . | . . . Highest-Rated Ally . | . . . Total Orders . | . . . Ally Attacks . | . . . Total Damage . | . . . Kills . | . . . Allies Corrupted . | . . . Allies Melted . | . . . Intel | -11 -10 -10 ------- Run | Yrd Mat Min Robot Analysis Total . | . . . Derelict Logs Recovered . | . . . Drone Launches . | . . . Drone Recoveries . | . . . Exploration | -11 -10 -10 ------------- Run | Yrd Mat Min Turns Passed 867 | 95 631 141 Spaces Moved 580 | 93 407 80 Core 32 | 20 11 1 Treads . | . . . Legs 359 | . 280 79 Wheels 189 | 73 116 . Hover . | . . . Flight . | . . . Fastest Speed 50 | 50 80 50 Average Speed 105 | 73 109 119 Slowest Speed 200 | 80 200 120 Overloaded Moves . | . . . Propulsion Burnouts . | . . . Robots Hopped . | . . . Cave-ins Triggered . | . . . Exploration Rate (%) 27 | 6 65 12 Regions Visited 2 Branch Regions 1 Pre-discovered Areas . | . . . Known Exits Taken . | . . . Unknown Exits Taken 2 | 1 1 . Scrap Searched . | . . . Spaces Dug . | . . . Terrain Destroyed . | . . . Melee . | . . . Projectile . | . . . AOE . | . . . Terrain Rammed . | . . . Walls Destroyed . | . . . Machines Disabled . | . . . Actions | -11 -10 -10 --------- Run | Yrd Mat Min Total 734 | 107 524 103 Wait 47 | 1 44 2 Move 578 | 92 406 80 Hop . | . . . Pick Up 12 | 3 9 . Fast Attach 16 | 6 10 . Attach 9 | . 4 5 Detach . | . . . Swap 1 | . 1 . Drop 12 | . 12 . Fire 55 | 5 38 12 Melee . | . . . Ram 4 | . . 4 Kick . | . . . Crush . | . . . Escape Stasis . | . . . Rewire . | . . . Trap . | . . . Miscellaneous . | . . . Route ------- -11/Scrapyard -10/Materials (discovered 2 exits: [*Mat] / [*Min]) -10/Mines History --------- Turn | Location | Event 2 | -11/Scrapyard | Met Revision 17 65 | -11/Scrapyard | Discovered new exit (range 8) 96 | -11/Scrapyard | Entered Materials 293 | -10/Materials | Lost 4 parts (2n1u1w) 312 | -10/Materials | Build established: Mutant 466 | -10/Materials | Discovered new exit (range 16) 664 | -10/Materials | Discovered new exit (range 14) 714 | -10/Materials | Repaired Heat Sink 727 | -10/Materials | Entered Mines 809 | -10/Mines | Core integrity fell below 50% 859 | -10/Mines | Core integrity fell below 20% 868 | -10/Mines | Destroyed by YI-UF0 with YI-UF0's Doublenader Last Messages --------------- The unstable cave ceiling collapses. Terrain Scanner destroyed. YI-UF0 mumbles something. Ion Engine destroyed. Aluminum Leg destroyed. Lgt. Assault Rifle destroyed. The unstable cave ceiling collapses. Slammed into YI-UF0. YI-UF0 mumbles something. The unstable cave ceiling collapses. Slammed into YI-UF0. Lgt. Assault Rifle destroyed. Heat Sink destroyed. The unstable cave ceiling collapses. Slammed into YI-UF0. YI-UF0 mumbles something. The unstable cave ceiling collapses. Mining Laser destroyed. Slammed into YI-UF0. The unstable cave ceiling collapses. Map ----- +----------------------------------------------------+ | | | | | | | | | ???????????########????????????????????? | | ???????#?#?# ####?????????????????? | | ???????????# ## ##??#???##????????? | | ???????????#^# ##???????????????? | | #??????????# ^ # #???????????????? | | ???????????# # ###?????????????? | | ??????#????# ^ #???????????????? | | ?????#?????######## #???????????????? | | ???????? ####????# #???##??????????? | | ???????? #####?## ###?????????????? | | ???????# ##### #???#?????????? | | ??????## | # #?????????????? | | ??????? # #?????????????? | | ???????# # # ##???????? ????? | | ???????# ##????????????? | | ??????## #?????????????? | | ??????# # #?????????????? | | ?????## # # # ###?????????????? | | ????## #####???????????????? | | ????# # #???????????????????? | | ??#?# #???????????????????? | | ??# @ #???????????#???????? | | ??# # g ????????????? | | ?# # #########???????????? | | ?# ## #??#??#?????????????? | | ?# ## #??# ###???????????????????? | | ????# ????# ###?????????????????????? | | ???# ?????# #???????????????????????? | | ???# ??????## ##???????????????????????? | | ???#???????? ?????????????????????????? | | ???????????? ?????????????????????????? | | ???????????? ?????????????????????????? | | ??????????? #?????????????????????????? | | ???????????##??????????????????????????? | | ???????????????????????????????????????? | | ???????????????????????????????????????? | | ???????????????????????????????????????? | | ???????????????????????????????????????? | | ???????????????????????????????????????? | | ???????????????????????????????????????? | | ???????????????????????????????????????? | | ???????????????????????????????????????? | | ???????????????????????????????????????? | | ???????????????????????????????????????? | | ???????????????????????????????????????? | | ???????????????????????????????????????? | +----------------------------------------------------+ Best States ------------- Heat Dissipation 35 Energy Generation 14 Energy Capacity 250 Matter Stores 300 Matter Capacity 300 Sight Range 16 Terrain Scan Range 14 Terrain Scan Density 10 Weapon Shielding 33 Evasion (%) 55 Item Schematics ----------------- None Robot Schematics ------------------ None Fabricated ------------ Nothing Alien Tech Used ----------------- None Achievements -------------- None Challenges ------------ None Game ------ Seed FluxSurgeMicroactuators Manual? 0 Play Time 00:44:49 Cumulative 8.1 hours Start 2024.12.29 @ 23:29:58 End 2025.01.12 @ 21:30:21 Sessions 3 Manual Loads 0 Difficulty Rogue Special Mode None Game No. 3 Rogue 2 Adventurer 1 Explorer 0 Win Type - Total 0 Types 0/0/0/0/0/0/0/0/0 Lore% 8 Gallery% 13 Achievement% 15 Wizard Run 0 Options --------- Layout 0 ASCII 0 Keyboard 0 Movement Arrows Keybinds 0 Fullscreen 1 Font 24/X11 Map View 76x50 Zoom Use 0% Tactical HUD 0 Map Filters NONE Filters NONE Steam 1 RUN: a55156c6-6f51-4648-a8d6-a98814708cb4